[Event "***Titled Tuesday 3|2 Blitz"]
[Site "Chess.com"]
[Date "2017.02.07"]
[Round "5"]
[White "Alexander_Moskalenko"]
[Black "dretch"]
[Result "1/2-1/2"]
[WhiteElo "2689"]
[BlackElo "2556"]
[TimeControl "180+2"]
[EndTime "14:13:38 PST"]
[Termination "Game drawn by repetition"]

1. Nf3 {[%clk 0:03:02]} 1... d5 {[%clk 0:02:59.7]} 2. c4 {[%clk 0:03:03.9]} 2...
dxc4 {[%clk 0:02:57.8]} 3. e3 {[%clk 0:03:04.6]} 3... Be6 {[%clk 0:02:58.4]} 4.
Na3 {[%clk 0:02:59.3]} 4... Nf6 {[%clk 0:02:58.6]} 5. Nxc4 {[%clk 0:02:54.6]}
5... Bd5 {[%clk 0:02:59.5]} 6. Be2 {[%clk 0:02:48.1]} 6... e6 {[%clk 0:03:00.5]}
7. O-O {[%clk 0:02:48.4]} 7... Be7 {[%clk 0:03:00.8]} 8. d3 {[%clk 0:02:37.5]}
8... O-O {[%clk 0:02:55.6]} 9. b3 {[%clk 0:02:38.8]} 9... b5 {[%clk 0:02:54.3]}
10. Ncd2 {[%clk 0:02:39.2]} 10... c5 {[%clk 0:02:54.3]} 11. Bb2 {[%clk
0:02:39.3]} 11... Nbd7 {[%clk 0:02:52.8]} 12. Qc2 {[%clk 0:02:29.2]} 12... Qb8
{[%clk 0:02:51.9]} 13. a4 {[%clk 0:02:25.8]} 13... a6 {[%clk 0:02:47.4]} 14.
Rfc1 {[%clk 0:02:21.8]} 14... Rc8 {[%clk 0:02:48]} 15. h3 {[%clk 0:02:14.4]}
15... h6 {[%clk 0:02:42.7]} 16. axb5 {[%clk 0:02:15.2]} 16... axb5 {[%clk
0:02:43.5]} 17. Rxa8 {[%clk 0:02:16.8]} 17... Qxa8 {[%clk 0:02:34.9]} 18. Ra1
{[%clk 0:02:17.6]} 18... Qb7 {[%clk 0:02:35]} 19. Bc3 {[%clk 0:02:19.2]} 19...
Bc6 {[%clk 0:02:27]} 20. Qa2 {[%clk 0:02:12.3]} 20... Nd5 {[%clk 0:02:26.8]} 21.
Bb2 {[%clk 0:02:10.9]} 21... Nc7 {[%clk 0:00:44.8]} 22. Qa7 {[%clk 0:01:59.1]}
22... Ra8 {[%clk 0:00:42.6]} 23. Qxb7 {[%clk 0:02:00.2]} 23... Rxa1+ {[%clk
0:00:43.4]} 24. Bxa1 {[%clk 0:02:02.1]} 24... Bxb7 {[%clk 0:00:45]} 25. Ne5
{[%clk 0:01:41.3]} 25... Nxe5 {[%clk 0:00:30.5]} 26. Bxe5 {[%clk 0:01:43.2]}
26... Nd5 {[%clk 0:00:32]} 27. Bb2 {[%clk 0:01:09.5]} 27... Bc6 {[%clk
0:00:21.5]} 28. d4 {[%clk 0:00:57.9]} 28... Bf6 {[%clk 0:00:11]} 29. Ne4 {[%clk
0:00:58.2]} 29... cxd4 {[%clk 0:00:07.1]} 30. Nxf6+ {[%clk 0:00:59.4]} 30...
Nxf6 {[%clk 0:00:09]} 31. Bxd4 {[%clk 0:01:01.1]} 31... Nd7 {[%clk 0:00:07.3]}
32. f3 {[%clk 0:00:38.8]} 32... e5 {[%clk 0:00:07.5]} 33. Bc3 {[%clk 0:00:30.4]}
33... f6 {[%clk 0:00:08.3]} 34. e4 {[%clk 0:00:31.3]} 34... Kf7 {[%clk
0:00:09.2]} 35. Bb4 {[%clk 0:00:27.6]} 35... Ke6 {[%clk 0:00:07]} 36. g4 {[%clk
0:00:21.3]} 36... Nb8 {[%clk 0:00:05.6]} 37. Bf8 {[%clk 0:00:18.1]} 37... Kf7
{[%clk 0:00:06.5]} 38. Bd6 {[%clk 0:00:19.7]} 38... Na6 {[%clk 0:00:06.8]} 39.
Kf2 {[%clk 0:00:16.1]} 39... Ke6 {[%clk 0:00:07.9]} 40. Bf8 {[%clk 0:00:17.3]}
40... Kf7 {[%clk 0:00:09.3]} 41. Ba3 {[%clk 0:00:18.9]} 41... Nc7 {[%clk
0:00:06.5]} 42. Ke3 {[%clk 0:00:08.3]} 42... Ne6 {[%clk 0:00:07.3]} 43. h4
{[%clk 0:00:09.2]} 43... Nd4 {[%clk 0:00:04.5]} 44. Bd1 {[%clk 0:00:10.3]} 44...
g5 {[%clk 0:00:05.4]} 45. hxg5 {[%clk 0:00:10.6]} 45... hxg5 {[%clk 0:00:05.1]}
46. Bc5 {[%clk 0:00:12.2]} 46... Ne6 {[%clk 0:00:06.2]} 47. Bb6 {[%clk
0:00:13.7]} 47... Ke7 {[%clk 0:00:07]} 48. b4 {[%clk 0:00:14.8]} 48... Kd6
{[%clk 0:00:08]} 49. Bb3 {[%clk 0:00:15.7]} 49... Bd7 {[%clk 0:00:08]} 50. Bd5
{[%clk 0:00:15.5]} 50... Bc6 {[%clk 0:00:09]} 51. Bb3 {[%clk 0:00:16.6]} 51...
Be8 {[%clk 0:00:09.8]} 52. Ba7 {[%clk 0:00:17.8]} 52... Bc6 {[%clk 0:00:09.3]}
53. Bb8+ {[%clk 0:00:18.6]} 53... Kd7 {[%clk 0:00:10.7]} 54. Ba7 {[%clk
0:00:18.5]} 54... Nc7 {[%clk 0:00:11.1]} 55. Bc5 {[%clk 0:00:13.6]} 55... Na6
{[%clk 0:00:11.9]} 56. Bf8 {[%clk 0:00:15.2]} 56... Ke8 {[%clk 0:00:13.1]} 57.
Bd6 {[%clk 0:00:16.2]} 57... Kd7 {[%clk 0:00:14.2]} 58. Bf8 {[%clk 0:00:17.4]}
58... Ke8 {[%clk 0:00:15.3]} 59. Bd6 {[%clk 0:00:18.5]} 59... Kd7 {[%clk
0:00:16]} 60. Bf8 {[%clk 0:00:19.4]} 60... Ke8 {[%clk 0:00:16.7]} 61. Bd6 {[%clk
0:00:20.2]} 61... Kd7 {[%clk 0:00:17.7]} 62. Bf8 {[%clk 0:00:20.5]} 1/2-1/2

[Event "***Titled Tuesday 3|2 Blitz"]
[Site "Chess.com"]
[Date "2017.02.07"]
[Round "5"]
[White "Divertissement"]
[Black "alekroth64"]
[Result "1-0"]
[WhiteElo "2438"]
[BlackElo "2218"]
[TimeControl "180+2"]
[EndTime "14:13:55 PST"]
[Termination "Divertissement won on time"]

1. d4 {[%clk 0:03:02]} 1... Nf6 {[%clk 0:02:58]} 2. Nf3 {[%clk 0:02:57.4]} 2...
e6 {[%clk 0:02:54.6]} 3. c4 {[%clk 0:02:57.6]} 3... b6 {[%clk 0:02:53.9]} 4. a3
{[%clk 0:02:37.6]} 4... Ba6 {[%clk 0:02:52.8]} 5. Qc2 {[%clk 0:02:34.3]} 5... c5
{[%clk 0:02:51.6]} 6. d5 {[%clk 0:02:33.6]} 6... exd5 {[%clk 0:02:52.1]} 7. cxd5
{[%clk 0:02:35.5]} 7... Bb7 {[%clk 0:02:53.1]} 8. Nc3 {[%clk 0:02:36.6]} 8...
Nxd5 {[%clk 0:02:43.2]} 9. e4 {[%clk 0:02:24.6]} 9... Nxc3 {[%clk 0:02:41.2]}
10. bxc3 {[%clk 0:02:26.5]} 10... Be7 {[%clk 0:02:39.4]} 11. Bc4 {[%clk
0:02:26.7]} 11... O-O {[%clk 0:02:40]} 12. O-O {[%clk 0:02:27.7]} 12... Nc6
{[%clk 0:02:40.8]} 13. Bf4 {[%clk 0:02:27.3]} 13... d6 {[%clk 0:02:32.4]} 14.
Rad1 {[%clk 0:02:25]} 14... Qc7 {[%clk 0:02:33.1]} 15. Rfe1 {[%clk 0:02:24.2]}
15... Rad8 {[%clk 0:02:30]} 16. Re3 {[%clk 0:02:08.8]} 16... Ne5 {[%clk
0:02:30.1]} 17. Bd5 {[%clk 0:02:07.1]} 17... Bxd5 {[%clk 0:02:24.6]} 18. Rxd5
{[%clk 0:02:09]} 18... Bf6 {[%clk 0:02:25.3]} 19. Bxe5 {[%clk 0:01:57.4]} 19...
dxe5 {[%clk 0:02:19.2]} 20. Red3 {[%clk 0:01:55.7]} 20... Rxd5 {[%clk
0:02:19.7]} 21. Rxd5 {[%clk 0:01:57.6]} 21... Rd8 {[%clk 0:02:21]} 22. c4 {[%clk
0:01:59]} 22... Rxd5 {[%clk 0:02:17.7]} 23. exd5 {[%clk 0:02:00.9]} 23... Be7
{[%clk 0:02:16.1]} 24. Qf5 {[%clk 0:02:01]} 24... Bd6 {[%clk 0:02:11.9]} 25. Ng5
{[%clk 0:01:59.8]} 25... g6 {[%clk 0:02:11.1]} 26. Qh3 {[%clk 0:01:58.9]} 26...
h5 {[%clk 0:02:04.1]} 27. g4 {[%clk 0:01:48.8]} 27... Be7 {[%clk 0:01:59]} 28.
Ne4 {[%clk 0:01:45.5]} 28... Qd7 {[%clk 0:01:52.4]} 29. f3 {[%clk 0:01:42.3]}
29... f5 {[%clk 0:01:48.1]} 30. gxh5 {[%clk 0:01:30.2]} 30... Qe8 {[%clk
0:01:34.4]} 31. d6 {[%clk 0:01:21.9]} 31... Bd8 {[%clk 0:01:28.3]} 32. hxg6
{[%clk 0:00:25.6]} 32... Qxg6+ {[%clk 0:01:17.4]} 33. Ng3 {[%clk 0:00:27.1]}
33... f4 {[%clk 0:01:09.4]} 34. Qc8 {[%clk 0:00:20.6]} 34... Qg5 {[%clk
0:01:08.8]} 35. Qe6+ {[%clk 0:00:17.8]} 35... Kg7 {[%clk 0:01:05.9]} 36. Qd7+
{[%clk 0:00:15.3]} 36... Kf8 {[%clk 0:00:56.3]} 37. Qf5+ {[%clk 0:00:09.6]}
37... Qxf5 {[%clk 0:00:51.5]} 38. Nxf5 {[%clk 0:00:11.5]} 38... Kf7 {[%clk
0:00:51.7]} 39. Nh6+ {[%clk 0:00:05.7]} 39... Ke6 {[%clk 0:00:48]} 40. Kf2
{[%clk 0:00:05.7]} 40... Bg5 {[%clk 0:00:46.3]} 41. d7 {[%clk 0:00:02.5]} 41...
Kxd7 {[%clk 0:00:43]} 42. Ng4 {[%clk 0:00:04]} 42... Ke6 {[%clk 0:00:39]} 43.
Ke2 {[%clk 0:00:05.6]} 43... b5 {[%clk 0:00:23]} 44. cxb5 {[%clk 0:00:05.6]}
44... c4 {[%clk 0:00:22.7]} 45. Nf2 {[%clk 0:00:06.4]} 45... Kd5 {[%clk
0:00:19.7]} 46. Ne4 {[%clk 0:00:07.9]} 46... Be7 {[%clk 0:00:19.1]} 47. a4
{[%clk 0:00:09]} 47... Kd4 {[%clk 0:00:17.4]} 48. a5 {[%clk 0:00:08.7]} 48...
Kd5 {[%clk 0:00:13.3]} 49. a6 {[%clk 0:00:08.5]} 49... Bd8 {[%clk 0:00:10]} 50.
h4 {[%clk 0:00:09.2]} 1-0

[Event "***Titled Tuesday 3|2 Blitz"]
[Site "Chess.com"]
[Date "2017.02.07"]
[Round "5"]
[White "Robin-Side"]
[Black "olgerts_indricans"]
[Result "1-0"]
[WhiteElo "2366"]
[BlackElo "2304"]
[TimeControl "180+2"]
[EndTime "14:13:57 PST"]
[Termination "Robin-Side won by resignation"]

1. d4 {[%clk 0:03:02]} 1... Nf6 {[%clk 0:02:15.9]} 2. Nc3 {[%clk 0:02:59.1]}
2... d5 {[%clk 0:02:16.2]} 3. e4 {[%clk 0:03:00.4]} 3... dxe4 {[%clk 0:02:15.5]}
4. f3 {[%clk 0:03:01.5]} 4... e3 {[%clk 0:02:17.1]} 5. Bxe3 {[%clk 0:03:02.4]}
5... e6 {[%clk 0:02:17.6]} 6. Bd3 {[%clk 0:03:02.3]} 6... Nbd7 {[%clk
0:02:15.3]} 7. Nge2 {[%clk 0:03:03.5]} 7... c5 {[%clk 0:02:15.3]} 8. Qd2 {[%clk
0:02:48.4]} 8... Be7 {[%clk 0:02:04.3]} 9. O-O-O {[%clk 0:02:47.9]} 9... cxd4
{[%clk 0:01:57]} 10. Bxd4 {[%clk 0:02:35.1]} 10... O-O {[%clk 0:01:52.8]} 11.
Ne4 {[%clk 0:02:13.5]} 11... Qc7 {[%clk 0:01:43.6]} 12. N2c3 {[%clk 0:02:04.1]}
12... a6 {[%clk 0:01:41.4]} 13. Nxf6+ {[%clk 0:01:58.8]} 13... Nxf6 {[%clk
0:01:41.6]} 14. Ne4 {[%clk 0:01:54.6]} 14... Nd5 {[%clk 0:01:32.5]} 15. Kb1
{[%clk 0:01:47.3]} 15... b5 {[%clk 0:01:27.8]} 16. h4 {[%clk 0:01:32.5]} 16...
Bb7 {[%clk 0:01:04.5]} 17. c3 {[%clk 0:01:28.4]} 17... Rfd8 {[%clk 0:00:47.8]}
18. Ng5 {[%clk 0:01:20.8]} 18... h6 {[%clk 0:00:48.6]} 19. Bh7+ {[%clk
0:01:18.5]} 19... Kf8 {[%clk 0:00:39.2]} 20. Nxf7 {[%clk 0:00:51.2]} 20... Kxf7
{[%clk 0:00:40.1]} 21. Qc2 {[%clk 0:00:52.6]} 21... Ke8 {[%clk 0:00:21.4]} 22.
Bxg7 {[%clk 0:00:47.2]} 22... Kd7 {[%clk 0:00:20.8]} 23. Qg6 {[%clk 0:00:42.8]}
23... Qc6 {[%clk 0:00:19.4]} 24. Rhe1 {[%clk 0:00:42.8]} 24... Rac8 {[%clk
0:00:17.5]} 25. Qxh6 {[%clk 0:00:41.8]} 25... Bf8 {[%clk 0:00:15.3]} 26. Bxf8
{[%clk 0:00:38.6]} 26... Rxf8 {[%clk 0:00:17.2]} 27. Qg7+ {[%clk 0:00:25.6]}
27... Kd6 {[%clk 0:00:17.8]} 28. Qe5+ {[%clk 0:00:16.7]} 28... Kd7 {[%clk
0:00:18.2]} 29. Qg7+ {[%clk 0:00:17.5]} 29... Kd6 {[%clk 0:00:19.2]} 30. Be4
{[%clk 0:00:13.7]} 30... Qd7 {[%clk 0:00:15.5]} 31. Qg3+ {[%clk 0:00:11.6]}
31... Kc6 {[%clk 0:00:16.4]} 32. h5 {[%clk 0:00:11.8]} 32... Kb6 {[%clk
0:00:17.4]} 33. h6 {[%clk 0:00:12.6]} 33... Rce8 {[%clk 0:00:16.6]} 34. Qf2+
{[%clk 0:00:13.8]} 34... Kc7 {[%clk 0:00:17.6]} 35. h7 {[%clk 0:00:15.2]} 35...
Rh8 {[%clk 0:00:18.9]} 36. Rh1 {[%clk 0:00:15.3]} 36... Qe7 {[%clk 0:00:20.1]}
37. Qg3+ {[%clk 0:00:16]} 37... Kc8 {[%clk 0:00:20.9]} 38. Qe5 {[%clk
0:00:17.2]} 38... Qf6 {[%clk 0:00:21.2]} 39. Qd6 {[%clk 0:00:18]} 39... Rd8
{[%clk 0:00:21.8]} 40. Qc5+ {[%clk 0:00:18.7]} 40... Nc7 {[%clk 0:00:22.1]} 41.
Rxd8+ {[%clk 0:00:16.7]} 41... Qxd8 {[%clk 0:00:23.4]} 42. Qe5 {[%clk
0:00:15.9]} 42... Bxe4+ {[%clk 0:00:23]} 43. Qxe4 {[%clk 0:00:17.8]} 43... Qd5
{[%clk 0:00:23.7]} 44. Qg6 {[%clk 0:00:16.2]} 44... Qf5+ {[%clk 0:00:24.1]} 45.
Qxf5 {[%clk 0:00:16.9]} 45... exf5 {[%clk 0:00:26]} 46. g4 {[%clk 0:00:18]}
46... fxg4 {[%clk 0:00:26.5]} 47. fxg4 {[%clk 0:00:19.9]} 47... Ne6 {[%clk
0:00:27.9]} 48. Rh6 {[%clk 0:00:17.3]} 48... Kd7 {[%clk 0:00:29.2]} 49. Kc2
{[%clk 0:00:17.5]} 49... Ke7 {[%clk 0:00:30.3]} 50. Kb3 {[%clk 0:00:18.8]} 50...
a5 {[%clk 0:00:31.1]} 51. a4 {[%clk 0:00:19.5]} 51... Nc5+ {[%clk 0:00:32]} 52.
Ka3 {[%clk 0:00:20.1]} 52... bxa4 {[%clk 0:00:31.3]} 53. Rc6 {[%clk 0:00:19.3]}
53... Ne6 {[%clk 0:00:31.9]} 54. Ra6 {[%clk 0:00:18.5]} 54... Kf6 {[%clk
0:00:32.8]} 55. Ra7 {[%clk 0:00:19.4]} 55... Kg5 {[%clk 0:00:33.4]} 56. Kxa4
{[%clk 0:00:20.5]} 56... Kxg4 {[%clk 0:00:34.2]} 57. Kxa5 {[%clk 0:00:21.8]}
57... Kf5 {[%clk 0:00:35.4]} 58. c4 {[%clk 0:00:22.9]} 58... Ke5 {[%clk
0:00:36.1]} 59. b4 {[%clk 0:00:23.6]} 59... Nf8 {[%clk 0:00:37]} 60. Ra8 {[%clk
0:00:17.2]} 60... Kd6 {[%clk 0:00:37.9]} 61. Ka6 {[%clk 0:00:16.1]} 61... Kc7
{[%clk 0:00:37.6]} 62. b5 {[%clk 0:00:15.2]} 62... Kd6 {[%clk 0:00:38.5]} 63. b6
{[%clk 0:00:16]} 63... Kc6 {[%clk 0:00:38.4]} 64. Rc8+ {[%clk 0:00:16.2]} 64...
Kd7 {[%clk 0:00:39.2]} 65. b7 {[%clk 0:00:17.7]} 65... Ne6 {[%clk 0:00:39.9]}
66. Rxh8 {[%clk 0:00:17.7]} 1-0

[Event "***Titled Tuesday 3|2 Blitz"]
[Site "Chess.com"]
[Date "2017.02.07"]
[Round "5"]
[White "Sanan_Sjugirov"]
[Black "Maitreia"]
[Result "1/2-1/2"]
[WhiteElo "2649"]
[BlackElo "2493"]
[TimeControl "180+2"]
[EndTime "14:13:58 PST"]
[Termination "Game drawn by agreement"]

1. d4 {[%clk 0:03:02]} 1... Nf6 {[%clk 0:02:58.4]} 2. Nf3 {[%clk 0:02:55]} 2...
g6 {[%clk 0:02:58.7]} 3. Bg5 {[%clk 0:02:55.1]} 3... Bg7 {[%clk 0:02:59.7]} 4.
Nbd2 {[%clk 0:02:54.1]} 4... O-O {[%clk 0:02:59.1]} 5. e3 {[%clk 0:02:55.1]}
5... b6 {[%clk 0:02:59.2]} 6. Bc4 {[%clk 0:02:54.9]} 6... Bb7 {[%clk 0:02:59.7]}
7. a4 {[%clk 0:02:45.7]} 7... c5 {[%clk 0:02:58.3]} 8. c3 {[%clk 0:02:44]} 8...
d6 {[%clk 0:02:54.4]} 9. O-O {[%clk 0:02:42.5]} 9... Nbd7 {[%clk 0:02:54.4]} 10.
a5 {[%clk 0:02:38.3]} 10... Bc6 {[%clk 0:02:47]} 11. Qe2 {[%clk 0:02:34]} 11...
bxa5 {[%clk 0:02:34.3]} 12. Bb3 {[%clk 0:02:06.8]} 12... cxd4 {[%clk 0:02:21.1]}
13. exd4 {[%clk 0:02:06.8]} 13... Rb8 {[%clk 0:02:13]} 14. Rfb1 {[%clk
0:01:57.6]} 14... Bd5 {[%clk 0:02:03.5]} 15. Bxd5 {[%clk 0:01:50.7]} 15... Nxd5
{[%clk 0:02:05.4]} 16. Qa6 {[%clk 0:01:30.8]} 16... h6 {[%clk 0:01:43.5]} 17.
Bh4 {[%clk 0:01:31.8]} 17... g5 {[%clk 0:01:30.2]} 18. Bg3 {[%clk 0:01:32.7]}
18... f5 {[%clk 0:00:47.6]} 19. Qxa5 {[%clk 0:01:11.9]} 19... N7f6 {[%clk
0:00:45.7]} 20. c4 {[%clk 0:01:03.2]} 20... f4 {[%clk 0:00:21.1]} 21. cxd5
{[%clk 0:00:59.8]} 21... fxg3 {[%clk 0:00:22.2]} 22. hxg3 {[%clk 0:00:58.7]}
22... Qxa5 {[%clk 0:00:14.4]} 23. Rxa5 {[%clk 0:00:58.9]} 23... Rb7 {[%clk
0:00:16.3]} 24. Nc4 {[%clk 0:00:42.9]} 24... Rc8 {[%clk 0:00:14.5]} 25. Ne3
{[%clk 0:00:42.5]} 25... Rcb8 {[%clk 0:00:11]} 26. Rba1 {[%clk 0:00:24.7]} 26...
Rxb2 {[%clk 0:00:06.6]} 27. Rxa7 {[%clk 0:00:25.8]} 27... Bf8 {[%clk 0:00:05.9]}
28. Nh2 {[%clk 0:00:08.1]} 28... Rb1+ {[%clk 0:00:06.9]} 29. Rxb1 {[%clk
0:00:09]} 29... Rxb1+ {[%clk 0:00:08.8]} 30. Nhf1 {[%clk 0:00:10.5]} 30... Ne4
{[%clk 0:00:10.5]} 31. Ra2 {[%clk 0:00:07.5]} 31... Nc3 {[%clk 0:00:09.9]} 32.
Rc2 {[%clk 0:00:07.9]} 32... Nb5 {[%clk 0:00:09.5]} 33. Rd2 {[%clk 0:00:08.4]}
33... Bg7 {[%clk 0:00:10.4]} 34. Nf5 {[%clk 0:00:09.5]} 34... Kf7 {[%clk
0:00:11.9]} 35. g4 {[%clk 0:00:08.7]} 35... Rb4 {[%clk 0:00:09.5]} 36. Nxg7
{[%clk 0:00:07.6]} 36... Kxg7 {[%clk 0:00:10.5]} 37. Ng3 {[%clk 0:00:07.1]}
37... Kf6 {[%clk 0:00:09.7]} 38. Re2 {[%clk 0:00:03]} 38... Nxd4 {[%clk
0:00:10.8]} 39. Re4 {[%clk 0:00:03.1]} 39... Nc2 {[%clk 0:00:08.5]} 40. Re6+
{[%clk 0:00:03.6]} 40... Kf7 {[%clk 0:00:10.1]} 41. Nf5 {[%clk 0:00:04.9]} 41...
Nd4 {[%clk 0:00:08]} 42. Rxe7+ {[%clk 0:00:03.8]} 42... Kf6 {[%clk 0:00:09.5]}
43. Rd7 {[%clk 0:00:03.9]} 43... Nxf5 {[%clk 0:00:09.8]} 44. gxf5 {[%clk
0:00:05.8]} 44... Kxf5 {[%clk 0:00:10.5]} 45. Rxd6 {[%clk 0:00:06.9]} 45... h5
{[%clk 0:00:09]} 46. Rd8 {[%clk 0:00:08.1]} 46... Rd4 {[%clk 0:00:07.5]} 47. g3
{[%clk 0:00:07]} 47... Ke5 {[%clk 0:00:07.7]} 48. Rg8 {[%clk 0:00:05.7]} 48...
Kf5 {[%clk 0:00:08.5]} 49. Rd8 {[%clk 0:00:06.1]} 49... Ke5 {[%clk 0:00:09.3]}
50. Rh8 {[%clk 0:00:07.2]} 50... h4 {[%clk 0:00:08.2]} 51. gxh4 {[%clk
0:00:07.8]} 51... Rxh4 {[%clk 0:00:10.1]} 52. Rd8 {[%clk 0:00:04]} 52... Rg4+
{[%clk 0:00:07.8]} 53. Kh2 {[%clk 0:00:04.8]} 53... Rd4 {[%clk 0:00:09.3]} 54.
Rg8 {[%clk 0:00:05.5]} 54... Kxd5 {[%clk 0:00:09]} 55. Rxg5+ {[%clk 0:00:06.4]}
55... Ke6 {[%clk 0:00:10.6]} 56. Kg3 {[%clk 0:00:07.6]} 56... Kf6 {[%clk
0:00:11.4]} 57. Ra5 {[%clk 0:00:08.5]} 57... Rb4 {[%clk 0:00:12.3]} 58. f4
{[%clk 0:00:09.2]} 58... Rb1 {[%clk 0:00:12.9]} 59. Ra6+ {[%clk 0:00:09.6]}
59... Kf5 {[%clk 0:00:14]} 60. Ra5+ {[%clk 0:00:10.7]} 60... Kf6 {[%clk
0:00:15.5]} 61. Kg4 {[%clk 0:00:10.6]} 1/2-1/2

[Event "***Titled Tuesday 3|2 Blitz"]
[Site "Chess.com"]
[Date "2017.02.07"]
[Round "5"]
[White "Sebastian"]
[Black "TomsKantans"]
[Result "0-1"]
[WhiteElo "2670"]
[BlackElo "2529"]
[TimeControl "180+2"]
[EndTime "14:14:00 PST"]
[Termination "TomsKantans won by resignation"]

1. e4 {[%clk 0:03:02]} 1... c5 {[%clk 0:03:00.6]} 2. Nf3 {[%clk 0:03:03.2]} 2...
Nf6 {[%clk 0:03:01.4]} 3. Nc3 {[%clk 0:03:02.7]} 3... Nc6 {[%clk 0:03:02.3]} 4.
d4 {[%clk 0:03:03.1]} 4... d5 {[%clk 0:03:03.2]} 5. exd5 {[%clk 0:02:58.6]} 5...
Nxd5 {[%clk 0:03:04.1]} 6. Bb5 {[%clk 0:02:49.6]} 6... Nxc3 {[%clk 0:03:02.8]}
7. bxc3 {[%clk 0:02:50.2]} 7... e6 {[%clk 0:02:57.9]} 8. O-O {[%clk 0:02:45.2]}
8... Be7 {[%clk 0:02:56.7]} 9. Ne5 {[%clk 0:02:41.7]} 9... Bd7 {[%clk
0:02:57.8]} 10. Bxc6 {[%clk 0:02:33.8]} 10... Bxc6 {[%clk 0:02:57.5]} 11. Qg4
{[%clk 0:02:35]} 11... O-O {[%clk 0:02:48.5]} 12. Bh6 {[%clk 0:02:24.8]} 12...
Bf6 {[%clk 0:02:49.3]} 13. Rad1 {[%clk 0:02:15.6]} 13... Qd5 {[%clk 0:02:16.4]}
14. c4 {[%clk 0:01:19.3]} 14... Qe4 {[%clk 0:01:15.7]} 15. Qg3 {[%clk
0:01:20.3]} 15... cxd4 {[%clk 0:00:42.2]} 16. Ng4 {[%clk 0:01:21]} 16... Qg6
{[%clk 0:00:31.6]} 17. Nxf6+ {[%clk 0:01:19.8]} 17... Qxf6 {[%clk 0:00:32.4]}
18. Bg5 {[%clk 0:01:21.1]} 18... Qg6 {[%clk 0:00:30.2]} 19. Rxd4 {[%clk
0:01:20.2]} 19... Qxc2 {[%clk 0:00:20.8]} 20. Be7 {[%clk 0:00:45.4]} 20... Rfe8
{[%clk 0:00:18.6]} 21. Qh4 {[%clk 0:00:36.2]} 21... h6 {[%clk 0:00:14.9]} 22.
Rg4 {[%clk 0:00:34.8]} 22... Kh7 {[%clk 0:00:09.9]} 23. h3 {[%clk 0:00:23.7]}
23... Qf5 {[%clk 0:00:10.3]} 24. Bd6 {[%clk 0:00:21.5]} 24... Rad8 {[%clk
0:00:10.2]} 25. c5 {[%clk 0:00:23]} 25... Rd7 {[%clk 0:00:10.4]} 26. Rf4 {[%clk
0:00:22.1]} 26... Qg6 {[%clk 0:00:11.5]} 27. Rg4 {[%clk 0:00:23.4]} 27... Qf5
{[%clk 0:00:12.6]} 28. Qg3 {[%clk 0:00:24.8]} 28... f6 {[%clk 0:00:13.1]} 29. a3
{[%clk 0:00:26.3]} 29... e5 {[%clk 0:00:13.9]} 30. Rc1 {[%clk 0:00:27.3]} 30...
h5 {[%clk 0:00:14]} 31. Rh4 {[%clk 0:00:27.9]} 31... g6 {[%clk 0:00:15.6]} 32.
Kh2 {[%clk 0:00:29]} 32... b5 {[%clk 0:00:13.3]} 33. Rb4 {[%clk 0:00:27.1]}
33... a5 {[%clk 0:00:14.2]} 34. Rb3 {[%clk 0:00:28.1]} 34... Qe6 {[%clk
0:00:12.3]} 35. Re3 {[%clk 0:00:27.8]} 35... Qd5 {[%clk 0:00:13.4]} 36. Rd3
{[%clk 0:00:24.7]} 36... Qe4 {[%clk 0:00:11.4]} 37. Re3 {[%clk 0:00:22.6]} 37...
Qf5 {[%clk 0:00:12.4]} 38. Rce1 {[%clk 0:00:22.5]} 38... g5 {[%clk 0:00:12.6]}
39. f3 {[%clk 0:00:22.2]} 39... Qf4 {[%clk 0:00:10.6]} 40. Rd3 {[%clk
0:00:20.3]} 40... h4 {[%clk 0:00:08.9]} 41. Qxf4 {[%clk 0:00:21.6]} 41... gxf4
{[%clk 0:00:10.8]} 42. Rb3 {[%clk 0:00:21.8]} 42... Kg6 {[%clk 0:00:11.3]} 43.
Reb1 {[%clk 0:00:22.3]} 43... Kf5 {[%clk 0:00:12.1]} 44. Kg1 {[%clk 0:00:24]}
44... Rg8 {[%clk 0:00:12.4]} 45. Kf2 {[%clk 0:00:23.9]} 45... Ke6 {[%clk
0:00:13.8]} 46. a4 {[%clk 0:00:22.7]} 46... b4 {[%clk 0:00:14.7]} 47. Rd3 {[%clk
0:00:24]} 47... Ra8 {[%clk 0:00:14.2]} 48. Ra1 {[%clk 0:00:24.8]} 48... Rb7
{[%clk 0:00:13.7]} 49. Rd2 {[%clk 0:00:25.2]} 49... b3 {[%clk 0:00:14.4]} 50.
Rb2 {[%clk 0:00:25.8]} 50... Rb4 {[%clk 0:00:11.6]} 51. Bc7 {[%clk 0:00:26.6]}
51... Ra7 {[%clk 0:00:10.3]} 52. Bb6 {[%clk 0:00:26.4]} 52... Ra8 {[%clk
0:00:11.7]} 53. Rd1 {[%clk 0:00:26.3]} 53... Bxa4 {[%clk 0:00:11.7]} 54. Rd6+
{[%clk 0:00:27.3]} 54... Ke7 {[%clk 0:00:12.3]} 55. Bc7 {[%clk 0:00:28.3]} 55...
Rc4 {[%clk 0:00:12.1]} 56. Rb6 {[%clk 0:00:28.4]} 56... Rc2+ {[%clk 0:00:12.8]}
57. Rxc2 {[%clk 0:00:29.2]} 57... bxc2 {[%clk 0:00:14.3]} 58. Bd6+ {[%clk
0:00:29.4]} 58... Kf7 {[%clk 0:00:15.3]} 59. Rb7+ {[%clk 0:00:28.8]} 59... Kg6
{[%clk 0:00:16.2]} 0-1